bitfinex-derivatives/quotes_SOLF0:USTF0_20250829
["timestamp","ask_amount","ask_price","bid_price","bid_amount"]
[1756456008734,0.94,208.32,208.19,3.9887994]
[1756456009130,4.3204,208.27,208.2,3.9887994]
[1756456009329,0.94,208.32,208.2,3.9887994]
[1756456009539,67.1935,208.31,208.2,3.9887994]
[1756456009739,4.3207,208.26,208.18,3.9887994]
[1756456009940,67.1935,208.31,208.18,3.9887994]
[1756456010242,4.3207,208.26,208.18,3.9887994]
[1756456010645,67.2098,208.26,208.16,3.9887994]
[1756456010838,67.2263,208.21,208.14,3.9887994]
[1756456011038,67.2263,208.21,208.1,3.9887994]
[1756456011342,67.223,208.22,208.09,3.9887994]
[1756456011541,0.94,208.16,208.03,3.9887994]
[1756456011736,0.94,208.16,208.06,11.1687994]
[1756456011942,0.94,208.16,208.08,3.9887994]
[1756456012138,0.94,208.16,208.07,3.9887994]
[1756456012939,0.94,208.16,208.06,11.1687994]
[1756456014251,4.3229,208.15,208.06,7.18]
[1756456014438,0.94,208.21,208.06,7.18]
[1756456014639,5.2627,208.16,208.06,11.1687994]
[1756456014946,0.94,208.16,208.06,7.18]
[1756456016046,5.2618,208.21,208.08,3.9887994]
[1756456016552,0.94,208.2,208.05,3.9887994]
[1756456016751,68.1696,208.2,208.03,3.9887994]
[1756456017050,4.3233,208.13,208.02,11.1687994]
[1756456018244,4.3233,208.13,208.02,7.18]
[1756456019249,68.1643,208.22,208.02,7.18]
[1756456019449,67.2294,208.2,208.04,7.18]
[1756456019650,4.3229,208.15,208.04,7.18]
[1756456020149,4.3233,208.13,208.04,7.18]
[1756456020352,68.1736,208.19,208.04,7.18]
[1756456020538,67.2363,208.18,208.04,7.18]
[1756456020742,4.3246,208.07,207.98,7.18]
[1756456020945,0.94,208.11,207.98,7.18]
[1756456021542,4.3243,208.09,207.98,7.18]
[1756456021744,0.94,208.11,207.98,7.18]
[1756456021947,4.3245,208.07,207.98,7.18]
[1756456022143,4.3245,208.07,207.9,347.6224282]
[1756456022144,0.94,208.07,207.92,7.18]
[1756456022648,0.94,208.13,207.92,7.18]
[1756456022954,0.94,208.13,207.94,7.18]
[1756456023246,4.3243,208.09,207.94,7.18]
[1756456023843,4.3246,208.07,207.94,7.18]
[1756456024053,0.94,208.13,207.94,7.18]
[1756456024553,4.3243,208.09,207.95,134.56]
[1756456024754,67.2594,208.11,207.95,134.56]
[1756456025155,4.3247,208.07,207.95,134.56]
[1756456025453,4.3247,208.07,207.94,7.18]
[1756456025651,4.3247,208.07,207.94,141.74]
[1756456026054,0.94,208.06,207.94,7.18]
[1756456026252,68.2291,208.02,207.91,7.18]
[1756456026451,67.2908,208.01,207.91,7.18]
[1756456026651,0.98,207.98,207.85,7.78]
[1756456027255,68.2808,207.98,207.85,7.78]
[1756456027653,4.3274,207.94,207.85,7.78]
[1756456027847,0.98,207.96,207.89,0.0334146]
[1756456028252,0.98,207.91,207.89,0.0334146]
[1756456028548,0.98,207.98,207.89,0.0334146]
[1756456028751,67.3046,207.97,207.89,0.0334146]
[1756456028952,0.98,207.98,207.89,0.0334146]
[1756456029158,4.3271,207.95,207.89,0.0334146]
[1756456029561,67.304,207.97,207.89,0.0334146]
[1756456029759,5.3072,207.94,207.89,0.0334146]
[1756456030058,0.98,207.93,207.89,0.0334146]
[1756456030259,0.98,207.95,207.89,0.0334146]
[1756456030757,4.3277,207.92,207.89,0.0334146]
[1756456031856,5.3073,207.94,207.89,0.0334146]
[1756456032055,4.3273,207.94,207.89,0.0334146]
[1756456032256,0.98,208.0,207.89,0.0334146]
[1756456034254,4.3279,207.91,207.89,0.0334146]
[1756456034454,0.98,207.9,207.89,0.0334146]
[1756456034671,0.98,207.9,207.8,124.18153655]
[1756456035163,0.98,207.9,207.78,7.78]
[1756456035363,5.3083,207.9,207.78,7.78]
[1756456035561,0.98,207.9,207.78,7.78]
[1756456036259,4.3285,207.89,207.78,7.78]
[1756456036564,0.98,207.9,207.78,7.78]
[1756456036858,4.3279,207.92,207.78,7.78]
[1756456037061,67.3178,207.93,207.78,7.78]
[1756456037563,4.3283,207.9,207.78,7.78]
[1756456037763,0.98,207.95,207.78,7.78]
[1756456038063,67.3136,207.94,207.78,7.78]
[1756456038463,67.2864,208.03,207.78,7.78]
[1756456038660,0.98,208.02,207.78,7.78]
[1756456039162,0.98,208.02,207.83,7.78]
[1756456039362,67.2752,208.06,207.89,7.78]
[1756456039563,67.2781,208.05,207.9,134.48]
[1756456039757,4.326,208.0,207.89,7.78]
[1756456039963,67.2878,208.02,207.89,142.26]
[1756456040467,4.3266,207.98,207.89,7.78]
[1756456040765,0.98,208.03,207.89,7.78]
[1756456040963,0.98,208.03,207.9,134.46]
[1756456041168,5.3054,208.03,207.9,134.46]
[1756456041372,0.98,208.03,207.91,7.78]
[1756456042171,0.98,208.08,207.91,7.78]
[1756456042564,4.3254,208.04,207.91,7.78]
[1756456042762,0.98,208.08,207.91,7.78]
[1756456043369,4.3249,208.06,207.95,7.78]
[1756456043969,68.2502,208.08,207.95,7.78]
[1756456044172,67.2718,208.07,207.95,7.78]
[1756456044466,67.2789,208.05,207.95,7.78]
[1756456044663,68.2618,208.04,207.93,101.88]
[1756456045268,68.2618,208.04,207.9,7.78]
[1756456045269,4.3262,208.0,207.9,7.78]
[1756456046578,4.3256,208.02,207.9,7.78]
[1756456046870,67.2702,208.08,207.93,19.744029]
[1756456047071,67.2702,208.08,207.94,7.78]
[1756456047762,4.3252,208.04,207.94,7.78]
[1756456047968,67.2727,208.07,207.94,7.78]
[1756456048172,67.2748,208.06,207.94,7.78]
[1756456048668,67.2733,208.07,207.94,7.78]
[1756456048871,67.2748,208.06,207.94,7.78]
[1756456049471,67.2817,208.04,207.94,7.78]
[1756456049668,0.98,208.05,207.91,105.52]
[1756456049973,4.326,208.01,207.91,105.52]
[1756456050173,67.282,208.04,207.91,105.52]
[1756456050574,4.3262,208.0,207.91,105.52]
[1756456050873,0.98,208.05,207.91,105.52]
[1756456051575,67.2866,208.03,207.9,7.78]
[1756456052672,4.3264,207.99,207.9,7.78]
[1756456054672,4.3264,207.99,207.9,11.78046106]
[1756456054880,4.3264,207.99,207.9,7.78]
[1756456055276,4.3264,207.99,207.9,11.78046106]
[1756456055476,4.3266,207.97,207.9,11.78046106]
[1756456056068,4.3259,208.01,207.91,7.78]
[1756456056379,4.3259,208.01,207.93,4.00046106]
[1756456056577,67.282,208.04,207.92,4.00046106]
[1756456056878,4.3262,208.0,207.93,4.00046106]
[1756456057474,4.3264,207.99,207.92,4.00046106]
[1756456057679,67.2653,208.09,207.96,11.86522186]
[1756456057875,4.3259,208.01,207.96,4.00046106]
[1756456058071,67.2888,208.02,207.94,4.00046106]
[1756456058272,67.2888,208.02,207.93,4.00046106]
[1756456058473,0.93,208.01,207.92,11.82046106]
[1756456059078,0.93,208.01,207.93,4.00046106]
[1756456059279,4.3264,207.99,207.93,4.00046106]
[1756456059778,4.3266,207.98,207.93,4.00046106]
[1756456059978,4.3266,207.98,207.92,11.82046106]
[1756456060176,4.3266,207.98,207.93,4.00046106]
[1756456061373,67.3016,207.98,207.93,4.00046106]
[1756456061574,67.3016,207.98,207.9,4.00046106]
[1756456062080,0.93,207.92,207.87,4.00046106]
[1756456062281,0.93,207.97,207.87,4.00046106]
[1756456062484,67.3084,207.96,207.87,4.00046106]
[1756456062780,67.3115,207.95,207.87,4.00046106]
[1756456063580,4.3276,207.93,207.87,4.00046106]
[1756456064281,4.3276,207.93,207.88,4.00046106]
[1756456064781,68.2192,208.02,207.91,4.00046106]
[1756456064983,0.93,208.02,207.91,4.00046106]
[1756456065479,68.2427,207.95,207.9,4.00046106]
[1756456065781,0.93,207.95,207.88,4.00046106]
[1756456066082,67.2795,208.05,207.94,5.3183992]
[1756456066283,67.2795,208.05,207.92,7.82]
[1756456066284,67.2824,208.04,207.95,4.02573358]
[1756456066470,4.3262,208.0,207.95,4.02573358]
[1756456066676,4.3262,208.0,207.96,4.02573358]
[1756456068480,67.2933,208.01,207.96,4.02573358]
[1756456068675,68.2295,207.99,207.93,4.02573358]
[1756456068876,68.2295,207.99,207.92,4.02573358]
[1756456068877,0.93,207.99,207.92,4.02573358]
[1756456069274,0.93,207.99,207.93,4.02573358]
[1756456069473,4.3267,207.97,207.93,4.02573358]
[1756456069673,0.93,207.99,207.93,4.02573358]
[1756456070580,67.302,207.98,207.92,4.02573358]
[1756456070782,67.3084,207.96,207.91,4.02573358]
[1756456070984,0.93,207.94,207.9,4.02573358]
[1756456071178,4.3277,207.92,207.9,4.02573358]
[1756456072784,4.3281,207.91,207.89,4.02573358]
[1756456074076,67.2933,208.01,207.88,25.00362106]
[1756456074293,67.2958,208.0,207.92,4.02940593]
[1756456074699,4.3272,207.95,207.92,4.02940593]
[1756456074999,67.3056,207.97,207.91,4.02940593]
[1756456075196,4.3274,207.94,207.92,4.02940593]
[1756456075600,4.3274,207.94,207.91,4.02940593]
[1756456075893,4.3277,207.92,207.91,4.02940593]
[1756456076294,4.3274,207.94,207.89,5.3183992]
[1756456076600,4.3274,207.94,207.92,4.03126619]
[1756456076899,67.3018,207.98,207.92,4.03126619]
[1756456076900,4.3266,207.98,207.92,4.03126619]
[1756456077106,67.281,208.05,207.96,4.03126619]
[1756456077798,67.2919,208.01,207.95,4.03126619]
[1756456078000,68.2159,208.03,207.96,4.03126619]
[1756456078199,4.3266,207.98,207.96,4.03126619]
[1756456080402,4.3266,207.98,207.97,4.03126619]
[1756456081206,0.93,208.08,207.98,7.82]
[1756456081400,68.204,208.07,208.03,1.184e-05]
[1756456081604,68.204,208.07,207.94,5.3183992]
[1756456081605,67.2922,208.01,207.94,5.3183992]
[1756456081909,0.93,208.03,207.93,5.3183992]
[1756456082205,0.93,208.03,207.94,5.3183992]
[1756456082410,0.93,208.03,207.95,5.3183992]
[1756456082598,4.3266,207.98,207.95,5.3183992]
[1756456083002,4.3266,207.98,207.95,13.1383992]
[1756456083608,67.2889,208.02,207.95,5.3183992]
[1756456083805,67.2989,207.99,207.93,5.3183992]
[1756456084109,67.3119,207.95,207.91,5.3183992]
[1756456084301,67.3119,207.95,207.9,5.3183992]
[1756456084500,4.3274,207.94,207.9,13.1383992]
[1756456084704,4.3274,207.94,207.91,5.3183992]
[1756456085103,68.2257,208.0,207.91,5.3183992]
[1756456085408,68.2257,208.0,207.89,15.7975988]
[1756456085409,68.2257,208.0,207.93,5.3183992]
[1756456085608,4.3273,207.95,207.93,5.3183992]
[1756456085806,4.3273,207.95,207.9,7.9775988]
[1756456085807,67.3013,207.99,207.92,5.3183992]
[1756456086005,67.3016,207.98,207.92,5.3183992]
[1756456086208,67.3016,207.98,207.91,5.3183992]
[1756456086606,68.2257,208.0,207.92,5.3183992]
[1756456086808,68.2257,208.0,207.93,5.3183992]
[1756456087007,67.2841,208.04,207.93,5.3183992]
[1756456087202,67.2858,208.03,207.93,5.3183992]
[1756456087399,67.2956,208.0,207.94,5.3183992]
[1756456087599,67.2927,208.01,207.88,11.86522186]
[1756456087600,0.97,207.96,207.9,5.3183992]
[1756456087806,67.3079,207.96,207.9,5.3183992]
[1756456088006,4.3275,207.94,207.91,5.3183992]
[1756456088308,67.2927,208.01,207.93,5.3183992]
[1756456088506,67.2927,208.01,207.94,5.3183992]
[1756456089010,67.298,208.0,207.93,12.8183992]
[1756456089208,67.3042,207.98,207.93,5.3183992]
[1756456089411,0.97,207.96,207.92,5.3183992]
[1756456089710,68.2627,208.01,207.92,5.3183992]
[1756456089901,68.2627,208.01,207.93,5.3183992]
[1756456090104,68.2627,208.01,207.94,5.3183992]
[1756456090508,0.97,208.01,207.94,5.3183992]
[1756456091006,67.2792,208.05,207.96,5.3183992]
[1756456091205,67.2869,208.05,207.97,5.3183992]
[1756456092816,4.3263,208.02,207.97,5.3183992]
[1756456093015,0.97,208.07,208.0,5.3183992]
[1756456093311,0.97,208.07,207.99,5.3183992]
[1756456094207,4.3257,208.04,208.0,7.5]
[1756456094610,4.3257,208.04,207.99,5.3183992]
[1756456094802,4.3257,208.04,208.0,7.5]
[1756456095003,67.251,208.17,208.02,5.3183992]
[1756456095207,67.2536,208.16,208.08,11.86522186]
[1756456095511,68.22,208.17,208.08,11.86522186]
[1756456095712,68.22,208.17,208.09,5.3183992]
[1756456095910,4.3244,208.12,208.09,5.3183992]
[1756456096313,4.3244,208.12,208.1,9.37635097]
[1756456096513,4.3244,208.12,208.11,9.37635097]
[1756456098605,4.3238,208.14,208.11,9.37635097]
[1756456098810,4.3238,208.14,208.12,9.37635097]
[1756456099004,4.3238,208.14,208.13,9.37635097]
[1756456099403,5.2938,208.14,208.13,5.097e-05]
[1756456101109,4.3238,208.14,208.13,5.097e-05]
[1756456104120,5.2938,208.14,208.13,5.097e-05]
[1756456104518,4.3254,208.06,208.04,5.3183992]
[1756456104718,68.2423,208.11,208.04,7.5]
[1756456104914,0.97,208.11,208.04,7.5]
[1756456107024,4.325,208.09,208.03,7.5]
[1756456107421,0.97,208.11,208.03,7.5]
[1756456107620,4.3248,208.1,208.03,7.5]
[1756456107821,0.97,208.11,208.03,7.5]
[1756456109519,4.3249,208.09,208.03,7.5]
[1756456109921,67.2566,208.15,208.03,7.5]
[1756456110121,4.3247,208.1,208.03,7.5]
[1756456110318,67.2611,208.14,208.03,7.5]
[1756456110828,4.325,208.09,208.03,7.5]
[1756456111222,0.97,208.11,208.03,7.5]
[1756456111421,0.97,208.11,208.04,4.63083926]
[1756456111725,0.97,208.11,208.05,4.63083926]
[1756456111928,0.97,208.11,208.06,4.65668535]
[1756456112124,67.2598,208.14,208.07,4.65668535]
[1756456112323,67.2598,208.14,208.08,4.65668535]
[1756456112523,5.2947,208.1,208.09,4.65668535]
[1756456113423,4.3247,208.1,208.09,4.65668535]
[1756456114021,5.2947,208.1,208.09,4.65668535]
[1756456114326,5.2947,208.1,208.09,8.535e-05]
[1756456114527,5.7747,208.1,208.09,8.535e-05]
[1756456114726,4.3263,208.02,207.99,7.5]
[1756456116520,4.3263,208.02,208.0,4.55706738]
[1756456116729,4.3263,208.02,208.01,4.55706738]
[1756456116924,4.3263,208.02,208.01,4.55707699]
[1756456118027,4.3263,208.02,208.01,7.699e-05]
[1756456118332,4.3259,208.04,208.01,7.699e-05]
[1756456118629,0.96,208.07,207.98,12.5683992]
[1756456118824,4.3255,208.06,208.0,7.25]
[1756456119024,4.3255,208.06,208.0,12.5683992]
[1756456119219,0.96,208.12,208.0,12.5683992]
[1756456119426,0.96,208.12,208.01,5.3183992]
[1756456119628,0.96,208.12,208.02,7.25]
[1756456120329,0.96,208.12,208.02,12.5683992]
[1756456120727,4.3249,208.09,208.02,12.5683992]
[1756456121427,4.3249,208.09,208.03,5.3183992]
[1756456121628,4.3252,208.08,208.04,7.25]
[1756456121820,0.96,208.12,208.04,7.25]
[1756456122026,67.2507,208.17,208.05,5.3183992]
[1756456122027,68.2107,208.17,208.05,5.3183992]
[1756456122220,68.2107,208.17,208.06,11.5753]
[1756456122531,0.96,208.17,208.06,7.25]
[1756456122726,0.96,208.17,208.07,17.18362106]
[1756456123230,0.96,208.22,208.08,7.25]
[1756456123423,0.96,208.22,208.11,24.43362106]
[1756456123621,0.96,208.22,208.11,157.41362106]
[1756456123828,0.96,208.22,208.12,5.3183992]
[1756456124029,0.96,208.22,208.11,145.5483992]
[1756456124420,4.3231,208.18,208.11,145.5483992]
[1756456125324,67.2372,208.21,208.11,145.5483992]
[1756456126225,4.3233,208.17,208.11,145.5483992]
[1756456126431,4.3233,208.17,208.11,140.23]
[1756456126628,4.3233,208.17,208.12,4.56778083]
[1756456126829,4.3233,208.17,208.13,4.56778083]
[1756456127024,4.3233,208.17,208.14,4.56778083]
[1756456127228,4.3233,208.17,208.15,4.56778083]
[1756456127422,4.3228,208.19,208.16,4.56738569]
[1756456127628,4.3228,208.19,208.17,4.56738569]
[1756456127821,5.2828,208.19,208.18,4.56738569]
[1756456128234,4.3233,208.17,208.13,7.25]
[1756456128427,0.96,208.22,208.14,4.56706597]
[1756456128631,0.96,208.22,208.15,4.56706597]
[1756456128832,0.96,208.22,208.16,4.56706597]
[1756456129128,0.96,208.18,208.17,4.56706597]
[1756456129332,5.2828,208.19,208.17,4.56706597]
[1756456129532,5.2828,208.19,208.18,6.597e-05]
[1756456131230,4.3228,208.19,208.18,6.597e-05]
[1756456131636,5.2828,208.19,208.18,6.597e-05]
[1756456131936,4.3228,208.19,208.18,6.597e-05]
[1756456132435,0.96,208.23,208.18,6.597e-05]
[1756456132634,0.96,208.23,208.12,7.25]
[1756456133339,4.3227,208.2,208.12,12.5683992]
[1756456134336,4.3222,208.22,208.14,5.3183992]
[1756456134540,4.3222,208.22,208.16,7.25]
[1756456134734,67.2248,208.25,208.16,7.25]
[1756456134942,4.3227,208.2,208.16,7.25]
[1756456135130,4.3227,208.2,208.14,12.5683992]
[1756456135335,4.3227,208.2,208.15,5.3183992]
[1756456135536,4.3227,208.2,208.16,7.25]
[1756456136741,4.3227,208.2,208.14,5.3183992]
[1756456136938,4.3229,208.19,208.14,12.5683992]
[1756456137336,67.234,208.22,208.14,12.5683992]
[1756456137535,67.234,208.22,208.11,7.9775988]
[1756456137536,0.96,208.18,208.12,5.3183992]
[1756456137736,0.96,208.18,208.11,5.3183992]
[1756456138738,4.3237,208.15,208.12,12.5683992]
[1756456139341,0.96,208.18,208.07,132.6]
[1756456139342,4.3239,208.14,208.11,5.3183992]
[1756456139536,4.3239,208.14,208.11,12.5683992]
[1756456139834,4.3239,208.14,208.11,7.25]
[1756456140039,4.3235,208.16,208.11,7.25]
[1756456140232,4.3235,208.16,208.11,12.5683992]
[1756456140439,0.96,208.18,208.11,12.5683992]
[1756456141446,0.96,208.18,208.13,4.02700281]
[1756456141739,4.3237,208.15,208.14,4.48628443]
[1756456142938,0.96,208.13,208.09,8.724e-05]
[1756456143343,0.96,208.13,208.01,330.15]
[1756456143344,0.96,208.13,208.05,5.3183992]
[1756456143545,67.2689,208.11,208.05,5.3183992]
[1756456143948,0.96,208.13,208.03,5.3183992]
[1756456144242,0.96,208.1,208.03,5.3183992]
[1756456144644,0.96,208.15,208.04,5.3183992]
[1756456144842,67.2789,208.08,208.02,5.3183992]
[1756456145146,68.2456,208.06,207.99,5.3183992]
[1756456145346,68.2456,208.06,207.98,5.3183992]
[1756456145644,4.3263,208.02,207.98,12.5683992]
[1756456145845,4.3263,208.02,207.98,7.25]
[1756456146036,67.2933,208.04,207.98,7.25]
[1756456146237,68.2456,208.06,207.98,7.25]
[1756456146839,4.3264,208.02,207.98,7.25]
[1756456147545,67.3081,207.99,207.95,5.3183992]
[1756456147744,67.3081,207.99,207.88,12.8583992]
[1756456147745,0.96,207.96,207.88,12.8583992]
[1756456148444,0.96,207.96,207.88,7.54]
[1756456148636,4.3279,207.95,207.88,7.54]
[1756456148842,0.96,207.96,207.88,7.54]
[1756456149347,111.24,208.01,207.88,7.54]
[1756456150648,4.3272,207.98,207.88,7.54]
[1756456151039,99.14,208.01,207.88,12.8583992]
[1756456151239,99.14,208.01,207.88,7.54]
[1756456151441,68.266,208.0,207.88,7.54]
[1756456151640,0.96,207.98,207.88,7.54]
[1756456152041,0.96,208.06,207.95,11.86522186]
[1756456152249,0.96,208.06,207.96,7.54]
[1756456152445,0.96,208.02,207.93,5.3183992]
[1756456152643,0.96,208.02,207.91,7.54]
[1756456154446,4.3266,208.01,207.91,7.54]
[1756456155641,4.3269,207.99,207.91,7.54]
[1756456155847,0.96,208.02,207.91,7.54]
[1756456156245,5.2864,208.02,207.92,4.3281]
[1756456156450,199.5889,208.05,207.92,4.3281]
[1756456156451,132.26,208.07,207.92,7.54]
[1756456156846,132.26,208.07,207.92,12.8583992]
[1756456157042,132.26,208.07,207.93,7.54]
[1756456157242,199.5423,208.07,207.93,7.54]
[1756456157445,68.2587,208.05,207.93,7.54]
[1756456158451,67.2927,208.04,207.93,7.54]
[1756456158752,0.97,208.05,207.93,7.54]
[1756456159350,4.3262,208.03,207.93,7.54]
[1756456159751,0.97,208.05,207.93,7.54]
[1756456160657,4.3264,208.02,207.93,7.54]
[1756456161249,4.3266,208.01,207.93,7.54]
[1756456161451,0.97,208.03,207.93,7.54]
[1756456161656,67.3013,208.01,207.93,7.54]
[1756456162253,4.3275,207.97,207.93,7.54]
[1756456162547,0.97,208.0,207.87,7.54]
[1756456163251,4.3269,207.99,207.87,7.54]
[1756456163449,4.3269,207.99,207.88,7.54]
[1756456164652,4.3265,208.01,207.93,7.54]
[1756456165149,0.97,208.04,207.93,7.54]
[1756456165449,68.2468,208.09,207.94,7.54]
[1756456165754,67.2788,208.08,207.94,7.54]
[1756456166146,0.97,208.06,207.94,7.54]
[1756456166754,4.3259,208.04,207.94,7.54]
[1756456166957,0.97,208.06,207.94,7.54]
[1756456167354,4.3262,208.03,207.94,7.54]
[1756456167855,4.3264,208.02,207.94,7.54]
[1756456169055,0.97,208.06,207.94,7.54]
[1756456169056,4.3267,208.01,207.94,7.54]
[1756456171658,68.2663,208.03,207.94,7.54]
[1756456173459,0.97,208.03,207.9,7.54]
[1756456174261,0.97,208.03,207.9,12.8583992]
[1756456174468,0.97,208.03,207.91,7.54]
[1756456174668,5.2961,208.03,207.96,4.3274]
[1756456174869,67.2859,208.06,207.97,7.54]
[1756456175073,0.97,208.05,207.93,19.40522186]
[1756456175373,4.3261,208.03,207.94,7.54]
[1756456175877,0.97,208.05,207.94,7.54]
[1756456176366,4.3268,208.0,207.94,7.54]
[1756456176967,4.3263,208.02,207.94,7.54]
[1756456178169,4.3266,208.01,207.94,7.54]
[1756456178568,67.2925,208.04,207.94,7.54]
[1756456178769,0.97,208.03,207.94,7.54]
[1756456179168,67.2984,208.02,207.94,7.54]
[1756456180576,4.3274,207.97,207.94,7.54]
[1756456181669,0.97,208.03,207.95,7.21]
[1756456182276,0.97,208.03,207.97,7.1201597]
[1756456182472,0.97,208.08,207.97,14.3301597]
[1756456182981,0.97,208.08,208.0,7.1201597]
[1756456183168,4.3259,208.04,208.0,7.1201597]
[1756456183370,4.3259,208.04,208.0,14.3301597]
[1756456183573,0.97,208.08,208.0,14.3301597]
[1756456183977,0.97,208.08,208.0,7.1201597]
[1756456184378,4.326,208.04,207.98,5.3183992]
[1756456184576,4.326,208.04,208.0,7.21]
[1756456188381,4.326,208.04,208.0,12.5283992]
[1756456190283,67.2859,208.06,208.0,5.3183992]
[1756456190781,68.2559,208.06,208.0,5.3183992]
[1756456191075,68.2559,208.06,207.99,5.3183992]
[1756456191577,4.3266,208.01,207.99,5.3183992]
[1756456193778,5.2969,207.99,207.98,9.92e-05]
[1756456193982,5.2969,207.99,207.95,15.1875988]
[1756456193983,0.97,207.99,207.95,7.21]
[1756456194182,67.3072,208.0,207.93,7.9775988]
[1756456194482,67.3072,208.0,207.94,7.9775988]
[1756456194876,67.3072,208.0,207.94,15.1875988]
[1756456195184,67.3072,208.0,207.94,22.3077585]
[1756456195382,67.3072,208.0,207.92,15.1875988]
[1756456195383,68.2855,207.97,207.92,15.1875988]
[1756456195584,67.3178,207.96,207.92,7.21]
[1756456195881,68.2878,207.96,207.92,7.21]
[1756456196082,4.3279,207.94,207.92,7.21]
[1756456196284,68.2878,207.96,207.9,15.0977585]
[1756456196285,68.2878,207.96,207.9,7.9775988]
[1756456196679,4.3284,207.92,207.91,7.21]
[1756456197075,0.97,207.96,207.9,7.9775988]
[1756456197279,67.3155,207.97,207.91,7.21]
[1756456197780,4.3283,207.93,207.91,7.21]
[1756456199581,0.97,207.91,207.81,192.55878297]
[1756456199785,67.3373,207.9,207.82,7.1201597]
[1756456200182,0.97,207.91,207.82,7.1201597]
[1756456200386,68.2897,207.96,207.86,7.21]
[1756456200583,4.3282,207.93,207.91,7.1201597]
[1756456201689,5.2982,207.93,207.88,14.3301597]
[1756456201986,0.97,207.93,207.88,14.3301597]
[1756456202184,67.322,207.95,207.83,131.16]
[1756456202389,0.97,207.91,207.84,14.3301597]
[1756456202691,67.34,207.89,207.81,185.34878297]
[1756456202884,0.97,207.91,207.83,7.1201597]
[1756456203084,0.97,207.95,207.88,4.04226203]
[1756456203389,0.97,207.95,207.9,4.04226203]
[1756456203589,4.3283,207.92,207.89,4.04226203]
[1756456203786,0.97,207.96,207.9,4.04226203]
[1756456203986,0.97,207.96,207.92,4.04226203]
[1756456204286,4.3275,207.96,207.93,4.04226203]
[1756456205188,68.2591,208.05,207.93,7.21]
[1756456205388,68.2591,208.05,207.96,4.03797143]
[1756456205592,67.2908,208.04,207.96,4.03797143]
[1756456205780,68.2417,208.1,207.96,4.03797143]
[1756456205985,131.08,208.09,207.99,4.03797143]
[1756456206186,0.97,208.1,207.99,4.03797143]
[1756456206490,0.97,208.1,208.03,4.03797143]
[1756456207287,67.2744,208.09,208.02,4.03797143]
[1756456207488,0.97,208.1,208.02,4.03797143]
[1756456207685,0.97,208.1,208.01,11.24797143]
[1756456207989,0.98,208.14,208.03,4.03797143]
[1756456208293,67.2586,208.14,208.08,4.03797143]
[1756456208493,67.2586,208.14,208.07,4.03797143]
[1756456208691,0.98,208.11,208.07,4.03797143]
[1756456208992,67.2551,208.15,208.05,4.03797143]
[1756456208993,0.98,208.12,208.05,4.03797143]
[1756456209187,0.98,208.1,208.02,7.143e-05]
[1756456209394,68.2655,208.06,207.94,7.94]
[1756456209686,67.2875,208.05,207.94,7.94]
[1756456209893,4.3266,208.01,207.94,7.94]
[1756456210386,68.2793,208.02,207.94,7.94]
[1756456210581,4.3272,207.98,207.94,7.94]
[1756456211487,4.3272,207.98,207.88,7.94]
[1756456212788,4.3275,207.96,207.88,7.94]
[1756456213192,67.3113,207.98,207.88,7.94]
[1756456213592,67.3177,207.96,207.88,7.94]
[1756456214591,4.3285,207.92,207.88,7.94]
[1756456214889,4.3285,207.92,207.85,7.94]